lending/lending_fUSD_20250425
["ID","MTS","AMOUNT","RATE_DAILY","PERIOD"]
[358951635,1745583090614,-740.34,0.00036164,2]
[358951636,1745583090624,-944.01,0.00036164,2]
[358951637,1745583090634,-500.0,0.00036164,2]
[358951638,1745583090644,-508.6,0.00036164,2]
[358951639,1745583090654,-500.0,0.00036164,2]
[358951640,1745583090664,-925.93,0.00036164,2]
[358951641,1745583090674,-159.470933,0.00036164,7]
[358951642,1745583090684,-500.0,0.00036164,2]
[358951643,1745583090694,-500.0,0.00036164,2]
[358951644,1745583090705,-823.83,0.00036164,2]
[358951645,1745583090715,-253.58459824,0.00036164,2]
[358951646,1745583090725,-500.0,0.00036164,2]
[358951647,1745583090735,-500.0,0.00036164,2]
[358951648,1745583090745,-159.470942,0.00036164,7]
[358951649,1745583090755,-515.42751159,0.00036164,2]
[358951650,1745583090765,-766.4,0.00036164,2]
[358951651,1745583090775,-167.4933552,0.00036164,2]
[358951652,1745583090785,-1156.82,0.00036164,2]
[358951653,1745583090795,-1036.66,0.00036164,2]
[358951654,1745583090805,-163.30586726,0.00036164,2]
[358951655,1745583090822,-500.0,0.00036164,2]
[358951656,1745583090832,-500.0,0.00036164,2]
[358951657,1745583090841,-230.480614,0.00036164,7]
[358951658,1745583090851,-500.0,0.00036164,2]
[358951659,1745583090860,-500.0,0.00036164,2]
[358951660,1745583090870,-500.0,0.00036164,2]
[358951661,1745583090879,-625.02,0.00036164,2]
[358951662,1745583090889,-500.0,0.00036164,2]
[358951663,1745583090899,-230.480616,0.00036164,7]
[358951664,1745583090909,-1045.74,0.00036164,2]
[358951665,1745583090919,-541.62,0.00036164,2]
[358951666,1745583090929,-500.0,0.00036164,2]
[358951667,1745583090939,-500.0,0.00036164,2]
[358951668,1745583090949,-500.0,0.00036164,2]
[358951669,1745583090959,-1106.64,0.00036164,2]
[358951670,1745583090968,-1140.56,0.00036164,2]
[358951671,1745583090978,-887.17,0.00036164,2]
[358951672,1745583090987,-1364.16,0.00036164,2]
[358951673,1745583090997,-1928.93,0.00036164,2]
[358951674,1745583091007,-1334.25,0.00036164,2]
[358951675,1745583091017,-1153.93,0.00036164,2]
[358951676,1745583091026,-500.0,0.00036164,2]
[358951677,1745583091036,-878.99,0.00036164,2]
[358951678,1745583091045,-500.0,0.00036164,2]
[358951679,1745583091055,-500.0,0.00036164,2]
[358951680,1745583091064,-500.0,0.00036164,2]
[358951681,1745583091074,-500.0,0.00036164,2]
[358951682,1745583091083,-896.35,0.00036164,2]
[358951683,1745583091092,-1114.87,0.00036164,2]
[358951684,1745583091101,-500.0,0.00036164,2]
[358951685,1745583091110,-500.0,0.00036164,2]
[358951686,1745583091121,-556.27,0.00036164,2]
[358951687,1745583091132,-500.0,0.00036164,2]
[358951688,1745583091142,-607.96327193,0.00036164,2]
[358951689,1745583091152,-500.0,0.00036164,2]
[358951690,1745583091162,-500.0,0.00036164,2]
[358951691,1745583091171,-500.0,0.00036164,2]
[358951692,1745583091181,-2054.24,0.00036164,2]
[358951693,1745583091192,-500.0,0.00036164,2]
[358951694,1745583091203,-500.0,0.00036164,2]
[358951695,1745583091214,-500.0,0.00036164,2]
[358951696,1745583091225,-598.28,0.00036164,2]
[358951697,1745583091236,-185.166163,0.00036164,2]
[358951698,1745583091248,-500.0,0.00036164,2]
[358951699,1745583091258,-500.0,0.00036164,2]
[358951700,1745583091270,-172.80660913,0.00036164,2]
[358951701,1745583091280,-500.0,0.00036164,2]
[358951702,1745583091290,-1134.2,0.00036164,2]
[358951703,1745583091300,-500.0,0.00036164,2]
[358951704,1745583091311,-500.0,0.00036164,2]
[358951705,1745583091320,-500.0,0.00036164,2]
[358951706,1745583091330,-500.0,0.00036164,2]
[358951707,1745583091341,-185.166163,0.00036164,2]
[358951708,1745583091350,-500.0,0.00036164,2]
[358951709,1745583091360,-500.0,0.00036164,2]
[358951710,1745583091371,-1021.1,0.00036164,2]
[358951711,1745583091382,-542.37,0.00036164,2]
[358951712,1745583091393,-500.0,0.00036164,2]
[358951713,1745583091403,-500.0,0.00036164,2]
[358951714,1745583091416,-1942.92,0.00036164,2]
[358951715,1745583091426,-500.0,0.00036164,2]
[358951716,1745583091435,-1549.99,0.00036164,2]
[358951717,1745583091445,-500.0,0.00036164,2]
[358951718,1745583091456,-500.0,0.00036164,2]
[358951719,1745583091466,-1024.21,0.00036164,2]
[358951720,1745583091476,-500.0,0.00036164,2]
[358951721,1745583091488,-500.0,0.00036164,2]
[358951722,1745583091498,-576.79037512,0.00036164,2]
[358951723,1745583091508,-500.0,0.00036164,2]
[358951724,1745583091517,-500.0,0.00036164,2]
[358951725,1745583091527,-817.1,0.00036164,2]
[358951726,1745583091537,-780.33,0.00036164,2]
[358951727,1745583091547,-657.49,0.00036164,2]
[358951728,1745583091557,-604.126834,0.00036164,7]
[358951729,1745583091566,-242.15681345,0.00036164,2]
[358951730,1745583091578,-500.0,0.00036164,2]
[358951731,1745583091589,-1626.59,0.00036164,2]
[358951732,1745583091599,-500.0,0.00036164,2]
[358951733,1745583091609,-500.0,0.00036164,2]
[358951734,1745583091619,-1186.09,0.00036164,2]
[358951735,1745583091628,-534.56,0.00036164,2]
[358951736,1745583091639,-500.0,0.00036164,2]
[358951737,1745583091649,-500.0,0.00036164,2]
[358951738,1745583091659,-500.0,0.00036164,2]
[358951739,1745583091669,-604.126837,0.00036164,7]
[358951740,1745583091679,-620.16,0.00036164,2]
[358951741,1745583091690,-1039.27,0.00036164,2]
[358951742,1745583091699,-500.0,0.00036164,2]
[358951743,1745583091709,-500.0,0.00036164,2]
[358951744,1745583091718,-500.0,0.00036164,2]
[358951745,1745583091728,-1185.34,0.00036164,2]
[358951746,1745583091738,-500.0,0.00036164,2]
[358951747,1745583091748,-1109.29,0.00036164,2]
[358951748,1745583091758,-500.0,0.00036164,2]
[358951749,1745583091769,-500.0,0.00036164,2]
[358951750,1745583091779,-500.0,0.00036164,2]
[358951751,1745583091789,-509.96,0.000362,3]
[358951752,1745583091799,-162.59671409,0.00036247,30]
[358951753,1745583091810,-977.28886356,0.00036338,2]
[358951754,1745583091820,-1313.60152448,0.00036348,13]
[358951755,1745583091829,-2116.3580473,0.00036413,2]
[358951756,1745583091839,-1041.4306644,0.00036413,2]
[358951757,1745583091849,-1943.1220655,0.00036413,2]
[358951758,1745583091858,-298.26089446,0.00036428,2]
[358951759,1745583091868,-500.0,0.00036437,10]
[358951760,1745583091878,-500.0,0.00036437,10]
[358951761,1745583091888,-500.0,0.00036437,10]
[358951762,1745583091897,-823.11,0.00036437,2]
[358951763,1745583091907,-823.11,0.00036437,2]
[358951764,1745583091916,-823.11,0.00036437,2]
[358951765,1745583091926,-823.11,0.00036437,2]
[358951766,1745583091936,-823.11,0.00036437,2]
[358951767,1745583091946,-823.24655412,0.00036437,2]
[358951768,1745583091956,-679.02,0.00036437,2]
[358951769,1745583091966,-679.02,0.00036437,2]
[358951770,1745583091976,-679.02,0.00036437,2]
[358951771,1745583091986,-679.02,0.00036437,2]
[358951772,1745583091995,-679.02,0.00036437,2]
[358951773,1745583092005,-679.10745641,0.00036437,2]
[358951774,1745583092015,-565.54975961,0.00036437,2]
[358951775,1745583092025,-1135.12,0.00036437,2]
[358951776,1745583092034,-1135.12,0.00036437,2]
[358951777,1745583092044,-1135.12,0.00036437,2]
[358951778,1745583092055,-1135.12,0.00036437,2]
[358951779,1745583092065,-1135.12,0.00036437,2]
[358951780,1745583092075,-1135.27602455,0.00036437,2]
[358951781,1745583092084,-500.0,0.00036437,2]
[358951782,1745583092094,-500.0,0.00036437,2]
[358951783,1745583092104,-500.0,0.00036437,2]
[358951784,1745583092114,-500.0,0.00036437,2]
[358951785,1745583092124,-497.22927234,0.00036437,2]
[358951786,1745583092134,-150.0,0.00036437,3]
[358951787,1745583092143,-159.273322,0.00036438,2]
[358951788,1745583092153,-585.740612,0.00036438,2]
[358951789,1745583092162,-585.740612,0.00036438,2]
[358951790,1745583092172,-500.0,0.00036438,2]
[358951791,1745583092181,-500.0,0.00036438,2]
[358951792,1745583092191,-500.0,0.00036438,2]
[358951793,1745583092201,-347.97617238,0.00036438,2]
[358951794,1745583092212,-253.23952419,0.00036438,2]
[358951795,1745583092221,-500.0,0.00036438,2]
[358951796,1745583092233,-517.24453531,0.00036438,2]
[358951797,1745583092243,-500.0,0.00036438,2]
[358951798,1745583092252,-1012.67,0.00036438,2]
[358951799,1745583092263,-500.0,0.00036438,2]
[358951800,1745583092273,-444.54976423,0.00036438,2]
[358951801,1745583092284,-500.0,0.00036438,2]
[358951802,1745583092295,-500.0,0.00036438,2]
[358951803,1745583092305,-500.0,0.00036438,2]
[358951804,1745583092315,-500.0,0.00036438,2]
[358951805,1745583092324,-500.0,0.00036438,2]
[358951806,1745583092335,-868.87,0.00036438,2]
[358951807,1745583092345,-797.02,0.00036438,2]
[358951808,1745583092355,-500.0,0.00036438,2]
[358951809,1745583092366,-643.47836793,0.00036438,2]
[358951810,1745583092376,-818.13,0.00036438,2]
[358951811,1745583092387,-1161.28,0.00036438,2]
[358951812,1745583092396,-500.0,0.00036438,2]
[358951813,1745583092407,-860.36,0.00036438,2]
[358951814,1745583092418,-500.0,0.00036438,2]
[358951815,1745583092428,-500.0,0.00036438,2]
[358951816,1745583092437,-500.0,0.00036438,2]
[358951817,1745583092446,-500.0,0.00036438,2]
[358951818,1745583092458,-500.0,0.00036438,2]
[358951819,1745583092469,-327.86268946,0.00036438,2]
[358951820,1745583092480,-500.0,0.00036438,2]
[358951821,1745583092491,-583.65,0.00036438,2]
[358951822,1745583092502,-500.0,0.00036438,2]
[358951823,1745583092511,-1027.07,0.00036438,2]
[358951824,1745583092521,-500.0,0.00036438,2]
[358951825,1745583092531,-500.0,0.00036438,2]
[358951826,1745583092540,-500.0,0.00036438,2]
[358951827,1745583092550,-1062.7,0.00036438,2]
[358951828,1745583092560,-703.37,0.00036438,2]
[358951829,1745583092570,-500.0,0.00036438,2]
[358951830,1745583092580,-500.0,0.00036438,2]
[358951831,1745583092589,-502.71,0.00036438,2]
[358951832,1745583092599,-500.42,0.00036438,2]
[358951833,1745583092609,-500.0,0.00036438,2]
[358951834,1745583092619,-500.0,0.00036438,2]
[358951835,1745583092629,-522.94,0.00036438,2]
[358951836,1745583092639,-500.0,0.00036438,2]
[358951837,1745583092648,-500.0,0.00036438,2]
[358951838,1745583092658,-524.0,0.00036438,2]
[358951839,1745583092667,-500.0,0.00036438,2]
[358951840,1745583092677,-500.0,0.00036438,2]
[358951841,1745583092686,-582.93,0.00036438,2]
[358951842,1745583092696,-539.03,0.00036438,2]
[358951843,1745583092705,-500.0,0.00036438,2]
[358951844,1745583092714,-644.39,0.00036438,2]
[358951845,1745583092723,-500.0,0.00036438,2]
[358951846,1745583092734,-500.0,0.00036438,2]
[358951847,1745583092743,-506.15,0.00036438,2]
[358951848,1745583092753,-649.96,0.00036438,2]
[358951849,1745583092763,-635.02,0.00036438,2]
[358951850,1745583092773,-500.0,0.00036438,2]
[358951851,1745583092782,-506.25,0.00036438,2]
[358951852,1745583092792,-917.14,0.00036438,2]
[358951853,1745583092802,-500.0,0.00036438,2]
[358951854,1745583092812,-452.81940524,0.00036438,2]
[358951855,1745583092822,-500.0,0.00036438,2]
[358951856,1745583092831,-500.0,0.00036438,2]
[358951857,1745583092841,-500.0,0.00036438,2]
[358951858,1745583092850,-500.0,0.00036438,2]
[358951859,1745583092859,-500.0,0.00036438,2]
[358951860,1745583092868,-500.0,0.00036438,2]
[358951861,1745583092877,-500.0,0.00036438,2]
[358951862,1745583092887,-595.85,0.00036438,2]
[358951863,1745583092897,-500.0,0.00036438,2]
[358951864,1745583092907,-500.0,0.00036438,2]
[358951865,1745583092916,-544.64,0.00036438,2]
[358951866,1745583092926,-793.45,0.00036438,2]
[358951867,1745583092936,-500.0,0.00036438,2]
[358951868,1745583092946,-500.0,0.00036438,2]
[358951869,1745583092955,-500.0,0.00036438,2]
[358951870,1745583092965,-620.54,0.00036438,2]
[358951871,1745583092974,-544.39,0.00036438,2]
[358951872,1745583092984,-500.0,0.00036438,2]
[358951873,1745583092993,-541.17,0.00036438,2]
[358951874,1745583093003,-755.48,0.00036438,2]
[358951875,1745583093012,-500.0,0.00036438,2]
[358951876,1745583093022,-500.0,0.00036438,2]
[358951877,1745583093032,-500.0,0.00036438,2]
[358951878,1745583093042,-700.11,0.00036438,2]
[358951879,1745583093052,-500.0,0.00036438,2]
[358951880,1745583093063,-500.0,0.00036438,2]
[358951881,1745583093072,-538.46,0.00036438,2]
[358951882,1745583093082,-500.0,0.00036438,2]
[358951883,1745583093092,-500.0,0.00036438,2]
[358951884,1745583093102,-500.0,0.00036438,2]
[358951885,1745583093111,-500.0,0.00036438,2]
[358951886,1745583093120,-500.0,0.00036438,2]
[358951887,1745583093130,-500.0,0.00036438,2]
[358951888,1745583093140,-250.60803594,0.00036438,2]
[358951889,1745583093150,-500.0,0.00036438,2]
[358951890,1745583093160,-500.0,0.00036438,2]
[358951891,1745583093171,-1069.68,0.00036438,2]
[358951892,1745583093180,-570.51,0.00036438,2]
[358951893,1745583093190,-640.19,0.00036438,2]
[358951894,1745583093200,-500.0,0.00036438,2]
[358951895,1745583093210,-500.0,0.00036438,2]
[358951896,1745583093219,-10810.18,0.00036438,2]
[358951897,1745583093229,-500.0,0.00036438,2]
[358951898,1745583093239,-500.0,0.00036438,2]
[358951899,1745583093248,-10840.88,0.00036438,2]
[358951900,1745583093258,-500.0,0.00036438,2]
[358951901,1745583093267,-899.41,0.00036438,2]
[358951902,1745583093277,-966.06,0.00036438,2]
[358951903,1745583093287,-4171.73,0.00036438,2]
[358951904,1745583093297,-500.0,0.00036438,2]
[358951905,1745583093306,-500.0,0.00036438,2]
[358951906,1745583093316,-500.0,0.00036438,2]
[358951907,1745583093326,-561.31768461,0.00036438,2]
[358951908,1745583093336,-500.0,0.00036438,2]
[358951909,1745583093346,-500.0,0.00036438,2]
[358951910,1745583093356,-500.0,0.00036438,2]
[358951911,1745583093367,-500.0,0.00036438,2]
[358951912,1745583093376,-500.0,0.00036438,2]
[358951913,1745583093386,-1032.19,0.00036438,2]
[358951914,1745583093395,-500.0,0.00036438,2]
[358951915,1745583093406,-500.0,0.00036438,2]
[358951916,1745583093629,-500.0,0.00036438,2]
[358951917,1745583093640,-568.252193,0.00036438,2]
[358951918,1745583093650,-1128.15,0.00036438,2]
[358951919,1745583093660,-568.252193,0.00036438,2]
[358951920,1745583093670,-500.0,0.00036438,2]
[358951921,1745583093681,-734.64,0.00036438,2]
[358951922,1745583093691,-500.0,0.00036438,2]
[358951923,1745583093700,-500.0,0.00036438,2]
[358951924,1745583093710,-500.0,0.00036438,2]
[358951925,1745583093721,-500.0,0.00036438,2]
[358951926,1745583093731,-500.0,0.00036438,2]
[358951927,1745583093742,-500.0,0.00036438,2]
[358951928,1745583093752,-500.0,0.00036438,2]
[358951929,1745583093762,-500.0,0.00036438,2]
[358951930,1745583093772,-500.0,0.00036438,2]
[358951931,1745583093782,-542.53,0.00036438,2]
[358951932,1745583093792,-500.0,0.00036438,2]
[358951933,1745583093802,-2830.29,0.00036438,2]
[358951934,1745583093813,-500.0,0.00036438,2]
[358951935,1745583093822,-500.0,0.00036438,2]
[358951936,1745583093832,-500.0,0.00036438,2]
[358951937,1745583093842,-500.0,0.00036438,2]
[358951938,1745583093852,-500.0,0.00036438,2]
[358951939,1745583093862,-500.0,0.00036438,2]
[358951940,1745583093871,-500.0,0.00036438,2]
[358951941,1745583093881,-500.0,0.00036438,2]
[358951942,1745583093891,-500.0,0.00036438,2]
[358951943,1745583093901,-994.75,0.00036438,2]
[358951944,1745583093911,-500.0,0.00036438,2]
[358951945,1745583093922,-1123.78,0.00036438,2]
[358951946,1745583093932,-500.0,0.00036438,2]
[358951947,1745583093942,-500.0,0.00036438,2]
[358951948,1745583093952,-623.9,0.00036438,2]
[358951949,1745583093962,-500.0,0.00036438,2]
[358951950,1745583093971,-500.0,0.00036438,2]
[358951951,1745583093982,-663.3,0.00036438,2]
[358951952,1745583093991,-500.0,0.00036438,2]
[358951953,1745583094001,-500.0,0.00036438,2]
[358951954,1745583094010,-1449.12,0.00036438,2]
[358951955,1745583094020,-566.72,0.00036438,2]
[358951956,1745583094029,-500.0,0.00036438,2]
[358951957,1745583094039,-500.0,0.00036438,2]
[358951958,1745583094048,-500.0,0.00036438,2]
[358951959,1745583094058,-500.0,0.00036438,2]
[358951960,1745583094068,-546.08,0.00036438,2]
[358951961,1745583094078,-500.0,0.00036438,2]
[358951962,1745583094088,-353.77135876,0.00036438,2]
[358951963,1745583094098,-728.93,0.00036438,2]
[358951964,1745583094107,-500.0,0.00036438,2]
[358951965,1745583094117,-653.19,0.00036438,2]
[358951966,1745583094126,-644.02,0.00036438,2]
[358951967,1745583094136,-1007.1,0.00036438,2]
[358951968,1745583094145,-500.0,0.00036438,2]
[358951969,1745583094154,-500.0,0.00036438,2]
[358951970,1745583094164,-787.02,0.00036438,2]
[358951971,1745583094174,-1008.08,0.00036438,2]
[358951972,1745583094184,-694.5,0.00036438,2]
[358951973,1745583094193,-500.0,0.00036438,2]
[358951974,1745583094203,-500.0,0.00036438,2]
[358951975,1745583094213,-1132.53,0.00036438,2]
[358951976,1745583094222,-215.16658043,0.00036438,2]
[358951977,1745583094232,-500.0,0.00036438,2]
[358951978,1745583094241,-500.0,0.00036438,2]
[358951979,1745583094251,-500.0,0.00036438,2]
[358951980,1745583094260,-523.97578909,0.00036438,2]
[358951981,1745583094270,-769.43,0.00036438,2]
[358951982,1745583094281,-500.0,0.00036438,2]
[358951983,1745583094290,-1312.71,0.00036438,2]
[358951984,1745583094300,-588.08,0.00036438,2]
[358951985,1745583094310,-611.78401887,0.00036438,2]
[358951986,1745583094320,-500.0,0.00036438,2]
[358951987,1745583094330,-500.0,0.00036438,2]
[358951988,1745583094340,-500.0,0.00036438,2]
[358951989,1745583094349,-500.0,0.00036438,2]
[358951990,1745583094359,-517.24,0.00036438,2]
[358951991,1745583094369,-1073.84,0.00036438,2]
[358951992,1745583094379,-500.0,0.00036438,2]
[358951993,1745583094389,-500.0,0.00036438,2]
[358951994,1745583094399,-1188.42,0.00036438,2]
[358951995,1745583094411,-500.0,0.00036438,2]
[358951996,1745583094421,-742.58,0.00036438,2]
[358951997,1745583094431,-500.0,0.00036438,2]
[358951998,1745583094440,-528.27,0.00036438,2]
[358951999,1745583094451,-500.0,0.00036438,2]
[358952000,1745583094460,-500.0,0.00036438,2]
[358952001,1745583094470,-678.67,0.00036438,2]
[358952002,1745583094479,-984.22,0.00036438,2]
[358952003,1745583094489,-500.0,0.00036438,2]
[358952004,1745583094499,-1357.86,0.00036438,2]
[358952005,1745583094511,-500.0,0.00036438,2]
[358952006,1745583094521,-1018.63,0.00036438,2]
[358952007,1745583094531,-500.0,0.00036438,2]
[358952008,1745583094541,-500.0,0.00036438,2]
[358952009,1745583094550,-500.0,0.00036438,2]
[358952010,1745583094560,-286.41314099,0.00036438,2]
[358952011,1745583094569,-599.18,0.00036438,2]
[358952012,1745583094579,-618.78,0.00036438,2]
[358952013,1745583094589,-500.0,0.00036438,2]
[358952014,1745583094600,-500.0,0.00036438,2]
[358952015,1745583094609,-1036.97,0.00036438,2]
[358952016,1745583094619,-500.0,0.00036438,2]
[358952017,1745583094629,-695.81,0.00036438,2]
[358952018,1745583094640,-500.0,0.00036438,2]
[358952019,1745583094650,-2083.95,0.00036438,2]
[358952020,1745583094660,-500.0,0.00036438,2]
[358952021,1745583094671,-500.0,0.00036438,2]
[358952022,1745583094680,-500.0,0.00036438,2]
[358952023,1745583094690,-500.0,0.00036438,2]
[358952024,1745583094700,-546.36,0.00036438,2]
[358952025,1745583094710,-500.0,0.00036438,2]
[358952026,1745583094720,-500.0,0.00036438,2]
[358952027,1745583094731,-1065.05,0.00036438,2]
[358952028,1745583094740,-765.14,0.00036438,2]
[358952029,1745583094750,-500.0,0.00036438,2]
[358952030,1745583094760,-500.0,0.00036438,2]
[358952031,1745583094769,-500.0,0.00036438,2]
[358952032,1745583094779,-238.63136524,0.00036438,2]
[358952033,1745583094789,-500.0,0.00036438,2]
[358952034,1745583094799,-858.84,0.00036438,2]
[358952035,1745583094810,-763.88,0.00036438,2]
[358952036,1745583094820,-500.0,0.00036438,2]
[358952037,1745583094829,-531.81819205,0.00036438,2]
[358952038,1745583094840,-500.0,0.00036438,2]
[358952039,1745583094849,-572.21,0.00036438,2]
[358952040,1745583094860,-500.0,0.00036438,2]
[358952041,1745583094870,-719.69,0.00036438,2]
[358952042,1745583094879,-879.02,0.00036438,2]
[358952043,1745583094889,-616.02489668,0.00036438,2]
[358952044,1745583094899,-500.0,0.00036438,2]
[358952045,1745583094908,-570.43,0.00036438,2]
[358952046,1745583094918,-500.0,0.00036438,2]
[358952047,1745583094928,-990.31,0.00036438,2]
[358952048,1745583094937,-500.0,0.00036438,2]
[358952049,1745583094947,-542.96,0.00036438,2]
[358952050,1745583094957,-657.75,0.00036438,2]
[358952051,1745583094967,-500.0,0.00036438,2]
[358952052,1745583094976,-500.0,0.00036438,2]
[358952053,1745583094986,-820.01,0.00036438,2]
[358952054,1745583094995,-500.0,0.00036438,2]
[358952055,1745583095005,-961.6,0.00036438,2]
[358952056,1745583095014,-500.0,0.00036438,2]
[358952057,1745583095024,-500.0,0.00036438,2]
[358952058,1745583095033,-500.0,0.00036438,2]
[358952059,1745583095043,-500.0,0.00036438,2]
[358952060,1745583095053,-500.0,0.00036438,2]
[358952061,1745583095064,-515.47,0.00036438,2]
[358952062,1745583095074,-845.57,0.00036438,2]
[358952063,1745583095083,-500.0,0.00036438,2]
[358952064,1745583095092,-754.68,0.00036438,2]
[358952065,1745583095101,-500.0,0.00036438,2]
[358952066,1745583095111,-500.0,0.00036438,2]
[358952067,1745583095120,-970.8,0.00036438,2]
[358952068,1745583095130,-500.0,0.00036438,2]
[358952069,1745583095139,-512.37,0.00036438,2]
[358952070,1745583095149,-500.0,0.00036438,2]
[358952071,1745583095158,-500.0,0.00036438,2]
[358952072,1745583095168,-500.0,0.00036438,2]
[358952073,1745583095178,-500.0,0.00036438,2]
[358952074,1745583095187,-1145.2,0.00036438,2]
[358952075,1745583095197,-500.0,0.00036438,2]
[358952076,1745583095207,-500.0,0.00036438,2]
[358952077,1745583095216,-500.0,0.00036438,2]
[358952078,1745583095225,-500.0,0.00036438,2]
[358952079,1745583095235,-1103.01,0.00036438,2]
[358952080,1745583095245,-536.99,0.00036438,2]
[358952081,1745583095255,-549.94980141,0.00036438,2]
[358952082,1745583095264,-500.0,0.00036438,2]
[358952083,1745583095274,-500.0,0.00036438,2]
[358952084,1745583095283,-538.17234962,0.00036438,2]
[358952085,1745583095292,-1179.17,0.00036438,2]
[358952086,1745583095302,-768.62,0.00036438,2]
[358952087,1745583095311,-500.0,0.00036438,2]
[358952088,1745583095321,-500.0,0.00036438,2]
[358952089,1745583095331,-1042.75,0.00036438,2]
[358952090,1745583095340,-781.78,0.00036438,2]
[358952091,1745583095350,-500.0,0.00036438,2]
[358952092,1745583095360,-500.0,0.00036438,2]
[358952093,1745583095369,-500.0,0.00036438,2]
[358952094,1745583095379,-500.0,0.00036438,2]
[358952095,1745583095389,-792.6,0.00036438,2]
[358952096,1745583095398,-500.0,0.00036438,2]
[358952097,1745583095409,-500.0,0.00036438,2]
[358952098,1745583095419,-871.81,0.00036438,2]
[358952099,1745583095428,-500.0,0.00036438,2]
[358952100,1745583095438,-500.0,0.00036438,2]
[358952101,1745583095448,-1002.05,0.00036438,2]
[358952102,1745583095458,-610.47,0.00036438,2]
[358952103,1745583095468,-500.0,0.00036438,2]
[358952104,1745583095478,-500.0,0.00036438,2]
[358952105,1745583095490,-500.0,0.00036438,2]
[358952106,1745583095500,-500.0,0.00036438,2]
[358952107,1745583095510,-500.0,0.00036438,2]
[358952108,1745583095519,-500.0,0.00036438,2]
[358952109,1745583095529,-500.0,0.00036438,2]
[358952110,1745583095539,-500.0,0.00036438,2]
[358952111,1745583095548,-500.0,0.00036438,2]
[358952112,1745583095558,-942.33,0.00036438,2]
[358952113,1745583095572,-500.0,0.00036438,2]
[358952114,1745583095582,-500.0,0.00036438,2]
[358952115,1745583095593,-500.0,0.00036438,2]
[358952116,1745583095603,-767.48,0.00036438,2]
[358952117,1745583095612,-500.0,0.00036438,2]
[358952118,1745583095622,-593.9,0.00036438,2]
[358952119,1745583095631,-500.0,0.00036438,2]
[358952120,1745583095641,-500.0,0.00036438,2]
[358952121,1745583095651,-827.14,0.00036438,2]
[358952122,1745583095661,-1147.58,0.00036438,2]
[358952123,1745583095671,-500.0,0.00036438,2]
[358952124,1745583095681,-1065.37,0.00036438,2]
[358952125,1745583095690,-500.0,0.00036438,2]
[358952126,1745583095700,-500.0,0.00036438,2]
[358952127,1745583095710,-500.0,0.00036438,2]
[358952128,1745583095720,-447.14389582,0.00036438,2]
[358952129,1745583095730,-1122.52,0.00036438,2]
[358952130,1745583095739,-500.0,0.00036438,2]
[358952131,1745583095749,-500.0,0.00036438,2]
[358952132,1745583095758,-500.0,0.00036438,2]
[358952133,1745583095768,-577.05063923,0.00036438,2]
[358952134,1745583095778,-500.0,0.00036438,2]